Cogmind - Beta 16 @@@ ROGUE MODE // 2025.12.20 @ 18:04:38 Player: TheGamingJasper Result: Destroyed by C-35 Carver with Carbide Saw Performance ------------- Evolutions (6) 3000 Regions Visited (9) 1800 Robots Destroyed (32) 160 Value Destroyed (847) 847 Prototype IDs (0) 0 Alien Tech Used (0) 0 Bonus (0) 0 TOTAL SCORE: 5807 Bonus ------- None Cogmind --------- Core Integrity 0/1150 Matter 260/300 Energy 99/100 System Corruption 0% Temperature Cool (0) Movement Core (50) Location -4/Factory Parts ------- > --- POWER (2) -------- (None) > --- PROPULSION (5) --- (None) > --- UTILITY (10) ----- (None) > --- WEAPON (2) ------- (None) > --- INVENTORY (5) ---- Advanced Trap Scanner Improved Terrain Scan Processor Improved Reaction Control System Improved Point Defense System Phase Cannon Peak State ------------ > --- POWER ------------ Micro Nuclear Core Micro Fission Core > --- PROPULSION ------- Xenon Bombardment Thruster Nuclear Pulse Array Field Propulsion Array > --- UTILITY ---------- Advanced Heat Sink Small Storage Unit Triangulator Advanced Sensor Array Targeting Computer Improved Targeting Computer Improved Targeting Computer Core Analyzer Utility Shielding System Shield > --- WEAPON ----------- Thermic Laser > --- INVENTORY -------- Light Deuterium Engine Advanced Trap Scanner Improved Terrain Scan Processor Energy Filter Improved Reaction Control System Cloaking Device Improved Point Defense System Phase Cannon [Rating: 77] Favorites ----------- Power Light Nuclear Core Engine Ion Engine Power Core Light Nuclear Core Propulsion Aluminum Leg Leg Aluminum Leg Flight Unit Nuclear Pulse Thruster Utility Small Storage Unit Device Heat Sink Storage Small Storage Unit Processor Improved Targeting Computer Hackware System Shield Protection Utility Shielding Weapon Small Laser Energy Gun Small Laser Energy Cannon Phase Cannon Build | -11 -10 -10 -10 -9 -8 -7 -6 -5 -4 ------- Run | Yrd Mat Min Exi Min Mat Fac Fac Fac Fac Slots Evolved 12 | . . . . . 4 2 2 2 2 Power 1 | . . . . . . . . . 1 Propulsion 3 | . . . . . 2 . . 1 . Utility 8 | . . . . . 2 2 2 1 1 Weapon . | . . . . . . . . . . Parts Attached 52 | 6 . 4 . 3 18 4 5 7 5 Power 7 | 1 . 1 . 1 2 1 . . 1 Engine 1 | 1 . . . . . . . . . Core 6 | . . 1 . 1 2 1 . . 1 Reactor . | . . . . . . . . . . Propulsion 16 | 2 . . . . 8 . 4 1 1 Treads . | . . . . . . . . . . Leg 6 | 2 . . . . 4 . . . . Wheel . | . . . . . . . . . . Hover . | . . . . . . . . . . Flight 10 | . . . . . 4 . 4 1 1 Utility 16 | 1 . 2 . . 4 2 1 4 2 Device 7 | . . 2 . . 2 . 1 1 1 Storage 1 | 1 . . . . . . . . . Processor 5 | . . . . . 2 2 . . 1 Hackware 1 | . . . . . . . . 1 . Protection 2 | . . . . . . . . 2 . Artifact . | . . . . . . . . . . Weapon 13 | 2 . 1 . 2 4 1 . 2 1 Energy Gun 12 | 2 . 1 . 2 4 1 . 2 . Energy Cannon 1 | . . . . . . . . . 1 Ballistic Gun . | . . . . . . . . . . Ballistic Cannon . | . . . . . . . . . . Launcher . | . . . . . . . . . . Special Weapon . | . . . . . . . . . . Impact Weapon . | . . . . . . . . . . Slashing Weapon . | . . . . . . . . . . Piercing Weapon . | . . . . . . . . . . Special Melee Weapon . | . . . . . . . . . . Unidentified Prototypes . | . . . . . . . . . . Parts Lost 29 | . . 1 . 5 6 . . 8 9 Power 3 | . . . . 1 1 . . . 1 Propulsion 9 | . . . . 2 . . . 4 3 Utility 8 | . . . . 1 2 . . 1 4 Weapon 9 | . . 1 . 1 3 . . 3 1 Highest Loss Streak 9 | . . 1 . 3 3 . . 4 9 To Critical Strikes . | . . . . . . . . . . Average Backups 5 | 2 2 4 7 6 5 7 7 6 7 Power 1 | . 1 1 2 1 . 1 . 1 . Propulsion 1 | . . . 2 2 1 1 1 . . Utility 1 | . . . 2 . . 1 2 2 5 Weapon 1 | . 1 . . . 1 3 3 1 . Tool/Special . | . . . . . . . . . . Unused Backups 23 | . . . . 2 4 4 2 4 7 Power 4 | . . . . 1 1 . 1 . 1 Propulsion 4 | . . . . . 3 . 1 . . Utility 7 | . . . . 1 . . . 1 5 Weapon 6 | . . . . . . 3 . 3 . Tool/Special 2 | . . . . . . 1 . . 1 Average Slot Usage (%) 89 | . 85 98 100 81 92 88 88 93 57 Engine 2 | . 14 11 . . . . . . . Core 7 | . . 2 14 13 8 7 6 5 4 Leg 17 | . 28 28 28 13 29 . . . . Flight 7 | . . . . . 3 30 26 25 8 Device 10 | . . 12 14 12 14 7 8 6 9 Storage 9 | . 14 14 14 14 9 7 6 5 3 Processor 9 | . . . . . 9 19 26 23 17 Hackware 1 | . . . . . . . . 4 4 Protection 1 | . . . . . . . . 9 3 Energy Gun 19 | . 28 27 28 27 18 15 13 8 3 Peak Build Rating 77 | 6 6 13 13 13 32 37 50 56 77 Average Rating 25 | 3 6 8 13 9 27 32 44 53 48 On Entrance 21 | . 6 6 13 13 8 29 37 50 51 Avg Prop Armor Cover (%) 20 | . . . . . 20 . . . . Naked Turns 21 | . . . . . . . . . 21 Heaviest Build 24 | 13 13 14 13 15 20 20 21 23 24 Greatest Support 80 | 20 20 20 20 20 80 20 24 31 34 Greatest Overweight (x) 5 | . . . . 4 5 . . . . Average Overweight (x) . | . . . . 2 . . . . . Largest Inventory Capacity 8 | 8 8 8 8 8 8 8 8 8 8 Average Capacity 7 | 7 8 8 8 8 8 8 8 8 7 Most Carried 8 | 4 2 8 8 8 8 8 8 8 8 Average Carried 5 | 2 2 4 8 6 5 7 7 6 7 Final Capacity 8 | 8 8 8 8 8 8 8 8 8 5 Final Carried 8 | 2 2 8 8 7 7 8 8 5 5 Class Distribution -------------------- 73% | Mutant 21% | Sprinter 5% | Scavenger-Mutant Dominant Class ---------------- Mutant | -10/Materials Mutant | -10/Mines Mutant | -10/Exiles Mutant | -9/Mines Mutant | -8/Materials Mutant | -7/Factory Sprinter | -6/Factory Sprinter | -5/Factory Mutant | -4/Factory Resources | -11 -10 -10 -10 -9 -8 -7 -6 -5 -4 ----------- Run | Yrd Mat Min Exi Min Mat Fac Fac Fac Fac Matter Collected 796 | 260 . 20 . 117 199 . . 200 . Remotely . | . . . . . . . . . . Salvage Created 1117 | . 60 138 . 249 586 . . 84 . Parts 53 | . 2 11 . 14 19 . . 7 . Haulers Intercepted 1 | . 1 . . . . . . . . Recyclers Shooed 2 | . . 1 . . 1 . . . . Parts Field Recycled . | . . . . . . . . . . Retrieved Matter . | . . . . . . . . . . Parts Self-Destructed . | . . . . . . . . . . Prevented . | . . . . . . . . . . Parts Restored . | . . . . . . . . . . Kills | -11 -10 -10 -10 -9 -8 -7 -6 -5 -4 ------- Run | Yrd Mat Min Exi Min Mat Fac Fac Fac Fac Combat Hostiles Destroyed 27 | . . 5 . 9 10 . . 3 . Guns 24 | . . 5 . 8 8 . . 3 . AOE 1 | . . . . . 1 . . . . Classes Destroyed 8 | . 1 2 . . 5 . . . . Builder 1 | . . . . . 1 . . . . Hauler 1 | . 1 . . . . . . . . Recycler 2 | . . . . . 2 . . . . Operator 1 | . . . . . 1 . . . . Swarmer 12 | . . 3 . 3 3 . . 3 . Grunt 13 | . . 2 . 6 5 . . . . Duelist 1 | . . . . . 1 . . . . Sentry 1 | . . . . . 1 . . . . Best Kill Streak 8 | . 1 3 . 5 8 . . 3 . Combat Bots Only 5 | . . 3 . 5 3 . . 3 . Max Kills in Single Turn 2 | . 1 1 . 1 2 . . 1 . Gunslinging . | . . . . . . . . . . Exploded 1 | . . . . . 1 . . . . Melee . | . . . . . . . . . . Uniques/NPCs Destroyed . | . . . . . . . . . . Combat | -11 -10 -10 -10 -9 -8 -7 -6 -5 -4 -------- Run | Yrd Mat Min Exi Min Mat Fac Fac Fac Fac Hostile Shots Fired 349 | . 3 30 . 59 57 2 18 57 123 Missed 130 | . 1 10 . 16 14 1 9 26 53 Hits 219 | . 2 20 . 43 43 1 9 31 70 Melee 33 | . . . . . 6 . . . 27 Projectile 186 | . 2 20 . 43 37 1 9 31 43 AOE 3 | . . . . . . . . . 3 Critical Strikes 18 | . . . . . 2 . . 1 15 Actively Blocked 1 | . . . . . . . . . 1 Damage Taken 3794 | . 22 236 . 494 773 16 66 617 1570 Core 1594 | . . 82 . 87 132 16 10 94 1173 Absorbed by Shields 58 | . . . . . . . . . 58 Redirected to Shielding 102 | . . . . . . . . 69 33 Core Remaining (%) 82 | 100 . . . 32 76 97 98 90 . Volleys Fired 99 | . 6 16 . 33 35 . . 9 . Largest 2 | . 2 2 . 2 2 . . 2 . Hottest 128 | . 80 80 . 105 128 . . 118 . Shots Fired 177 | . 12 32 . 50 67 . . 16 . Gun 177 | . 12 32 . 50 67 . . 16 . Cannon . | . . . . . . . . . . Launcher . | . . . . . . . . . . Special . | . . . . . . . . . . Kinetic . | . . . . . . . . . . Thermal 141 | . 6 27 . 50 49 . . 9 . Explosive . | . . . . . . . . . . Electromagnetic 36 | . 6 5 . . 18 . . 7 . Robot Hit Streak 12 | . 4 4 . 12 11 . . 7 . Robot Miss Streak 4 | . 1 3 . 2 4 . . 2 . Penetration Max . | . . . . . . . . . . Secondary Targets 6 | . . 1 . 2 3 . . . . Max Gunslinging Chain 1 | . . 1 . 1 1 . . . . Shots Hit Robots 121 | . 8 16 . 36 48 . . 13 . Core Hits 55 | . 2 8 . 14 23 . . 8 . Critical Kills . | . . . . . . . . . . Critical Parts Destroyed . | . . . . . . . . . . Critical Strikes 4 | . . . . . 4 . . . . Burn 2 | . . . . . 2 . . . . Corrupt 2 | . . . . . 2 . . . . Melee Attacks . | . . . . . . . . . . Impact . | . . . . . . . . . . Slashing . | . . . . . . . . . . Piercing . | . . . . . . . . . . Sneak Attacks . | . . . . . . . . . . Combat Hostiles . | . . . . . . . . . . Follow-up Attacks . | . . . . . . . . . . Damage Inflicted 1889 | . 97 190 . 463 900 . . 239 . Guns 1764 | . 97 190 . 463 775 . . 239 . Cannons . | . . . . . . . . . . Explosions 125 | . . . . . 125 . . . . Melee . | . . . . . . . . . . Ramming . | . . . . . . . . . . Kinetic . | . . . . . . . . . . Thermal 1475 | . 57 166 . 463 638 . . 151 . Explosive . | . . . . . . . . . . Electromagnetic 414 | . 40 24 . . 262 . . 88 . Impact . | . . . . . . . . . . Slashing . | . . . . . . . . . . Piercing . | . . . . . . . . . . Highest Corruption 1 | . . . . . . . . 1 . Average Corruption 1 | . . . . . . . . 1 . Corruption Purged . | . . . . . . . . . . Corruption Blocked . | . . . . . . . . . . Effects 1 | . . . . . . . . 1 . Energy Discharges 1 | . . . . . . . . 1 . Overload Shots . | . . . . . . . . . . Overflow Damage . | . . . . . . . . . . Projectiles . | . . . . . . . . . . Explosions . | . . . . . . . . . . Melee . | . . . . . . . . . . Knockbacks . | . . . . . . . . . . Impact . | . . . . . . . . . . Kinetic . | . . . . . . . . . . Secondary . | . . . . . . . . . . Self-Inflicted Damage 41 | . . . . . 41 . . . . Shots 1 | . . . . . 1 . . . . Rammed . | . . . . . . . . . . Targets Rammed . | . . . . . . . . . . Kicked . | . . . . . . . . . . Crushed . | . . . . . . . . . . Highest Temperature 476 | . 36 54 . 426 476 . . . . Average Temperature 127 | . 18 16 . 194 122 . . . . Received Heat Transfer 750 | . 12 108 . 207 279 . 18 36 90 Effects 7 | . . . . 6 1 . . . . Shutdowns 1 | . . . . 1 . . . . . Interference 4 | . . . . 4 . . . . . Matter Decay 2 | . . . . 1 1 . . . . Siege Activations . | . . . . . . . . . . Martial Activations . | . . . . . . . . . . Shielding Activations . | . . . . . . . . . . Robots Disrupted . | . . . . . . . . . . Combat Hostiles . | . . . . . . . . . . Robots Corrupted . | . . . . . . . . . . Combat Hostiles . | . . . . . . . . . . Parts Fried . | . . . . . . . . . . Impact Corruptions . | . . . . . . . . . . Robots Melted 2 | . . . . 1 1 . . . . Combat Hostiles 2 | . . . . 1 1 . . . . Parts Melted 5 | . . 1 . 2 2 . . . . Heat Transferred 3375 | . 125 375 . 1057 1496 . . 322 . Parts Sabotaged . | . . . . . . . . . . Parts Stolen . | . . . . . . . . . . Parts Stripped . | . . . . . . . . . . Power Chain Reactions 2 | . . . . . 2 . . . . Alert | -11 -10 -10 -10 -9 -8 -7 -6 -5 -4 ------- Run | Yrd Mat Min Exi Min Mat Fac Fac Fac Fac Maximum Alert Level . | . . . . . . . . . . Low Security (%) 100 | 100 100 100 . 100 100 100 100 100 100 Level 1 . | . . . . . . . . . . Level 2 . | . . . . . . . . . . Level 3 . | . . . . . . . . . . Level 4 . | . . . . . . . . . . Level 5 . | . . . . . . . . . . High Security . | . . . . . . . . . . Max Security . | . . . . . . . . . . Peak Influence 171 | . 15 70 . 70 171 69 21 120 50 Initial 69 | . . . . . 3 69 21 . 23 Average 31 | . 1 18 . 35 49 58 8 39 11 Influence Increases 1063 | . 22 120 . 200 316 15 . 285 105 Destroy 0b10 Robot/C 540 | . . 100 . 180 200 . . 60 . Destroy 0b10 Robot/NC 25 | . 5 . . . 20 . . . . Destroy Leader 82 | . 2 20 . 20 40 . . . . Destroy Structure 11 | . . . . . 11 . . . . Partial Spotted 120 | . 15 . . . 30 15 . 30 30 Lose Combat Pursuer 285 | . . . . . 15 . . 195 75 Influence Decreases 1013 | . 22 120 . 190 173 124 44 236 104 Entered New Map 140 | . . . . . 7 84 23 . 26 Time Decay 678 | . 22 120 . 140 116 40 21 156 63 Lost Part 195 | . . . . 50 50 . . 80 15 Squads Dispatched 4 | . 1 . . . . . . 1 2 Investigation 1 | . 1 . . . . . . . . Extermination 2 | . . . . . . . . 1 1 Reinforcement 1 | . . . . . . . . . 1 Assault . | . . . . . . . . . . Garrison . | . . . . . . . . . . Intercept . | . . . . . . . . . . Searches Triggered . | . . . . . . . . . . Construction Impeded . | . . . . . . . . . . Haulers Reinforced . | . . . . . . . . . . Active Scanning Responses . | . . . . . . . . . . Cargo Convoy Interrupts . | . . . . . . . . . . Stealth | -11 -10 -10 -10 -9 -8 -7 -6 -5 -4 --------- Run | Yrd Mat Min Exi Min Mat Fac Fac Fac Fac Distress Signals 2 | . . . . 1 1 . . . . Communications Jammed . | . . . . . . . . . . Distress Signals . | . . . . . . . . . . Times Spotted 74 | . 2 4 . 10 17 2 3 19 17 Peak Tracking Total 13 | . 2 2 . 7 6 1 7 9 13 Tactical Retreats 11 | . . . . . 1 . . 7 3 Traps | -11 -10 -10 -10 -9 -8 -7 -6 -5 -4 ------- Run | Yrd Mat Min Exi Min Mat Fac Fac Fac Fac Traps Triggered 5 | . 1 . . . 1 . . 1 2 Indirectly . | . . . . . . . . . . Trap Hack Attempts . | . . . . . . . . . . Triggered . | . . . . . . . . . . Disarmed . | . . . . . . . . . . Reprogrammed . | . . . . . . . . . . Reused . | . . . . . . . . . . Traps Extracted . | . . . . . . . . . . Installed . | . . . . . . . . . . Triggered . | . . . . . . . . . . Machines | -11 -10 -10 -10 -9 -8 -7 -6 -5 -4 ---------- Run | Yrd Mat Min Exi Min Mat Fac Fac Fac Fac Machines Disabled . | . . . . . . . . . . Max in Single Turn . | . . . . . . . . . . Machines Repaired . | . . . . . . . . . . Machines Dismantled . | . . . . . . . . . . Machines Sabotaged . | . . . . . . . . . . Overloaded Fab Kills . | . . . . . . . . . . Hacking | -11 -10 -10 -10 -9 -8 -7 -6 -5 -4 --------- Run | Yrd Mat Min Exi Min Mat Fac Fac Fac Fac Machines Accessed 7 | . 1 1 2 . 1 . . 2 . Terminals 4 | . 1 . . . 1 . . 2 . Fabricators . | . . . . . . . . . . Repair Stations . | . . . . . . . . . . Recycling Units . | . . . . . . . . . . Scanalyzers . | . . . . . . . . . . Garrison Access . | . . . . . . . . . . Total Hacks 11 | . 1 1 2 . 2 . . 5 . Successful 6 | . 1 1 2 . . . . 2 . Failed 5 | . . . . . 2 . . 3 . Catastrophic 2 | . . . . . 2 . . . . Database Lockouts . | . . . . . . . . . . Manual 5 | . 1 . 1 . 2 . . 1 . Terminals 8 | . 1 . . . 2 . . 5 . Fabricators . | . . . . . . . . . . Repair Stations . | . . . . . . . . . . Recycling Units . | . . . . . . . . . . Scanalyzers . | . . . . . . . . . . Garrison Access . | . . . . . . . . . . Terminal Hacks 6 | . 1 1 2 . . . . 2 . Record 4 | . . . 2 . . . . 2 . Open Door 1 | . . 1 . . . . . . . Recall Investigation 1 | . 1 . . . . . . . . Fabricator Hacks . | . . . . . . . . . . Repair Station Hacks . | . . . . . . . . . . Recycling Unit Hacks . | . . . . . . . . . . Scanalyzer . | . . . . . . . . . . Garrison Access Hacks . | . . . . . . . . . . Unauthorized Hacks . | . . . . . . . . . . Terminals . | . . . . . . . . . . Fabricators . | . . . . . . . . . . Repair Stations . | . . . . . . . . . . Recycling Units . | . . . . . . . . . . Scanalyzers . | . . . . . . . . . . Garrison Access . | . . . . . . . . . . Data Cores Recovered 1 | . . . . . 1 . . . . Used . | . . . . . . . . . . Hacking Detections 3 | . . . . . 1 . . 2 . Full Trace Events . | . . . . . . . . . . Feedback Events . | . . . . . . . . . . Feedback Blocked . | . . . . . . . . . . Robot Schematics Acquired . | . . . . . . . . . . Robots Built . | . . . . . . . . . . Authchips . | . . . . . . . . . . Time . | . . . . . . . . . . Total Robot Build Rating . | . . . . . . . . . . Part Schematics Acquired . | . . . . . . . . . . Parts Built . | . . . . . . . . . . Authchips . | . . . . . . . . . . Time . | . . . . . . . . . . Total Part Build Rating . | . . . . . . . . . . Part Studies Acquired . | . . . . . . . . . . Parts Repaired . | . . . . . . . . . . Time . | . . . . . . . . . . Parts Recycled . | . . . . . . . . . . Recycled Matter . | . . . . . . . . . . Retrieved Matter . | . . . . . . . . . . Retrieved Components . | . . . . . . . . . . Parts Scanalyzed . | . . . . . . . . . . Part Schematics Acquired . | . . . . . . . . . . Parts Damaged . | . . . . . . . . . . Bothacking | -11 -10 -10 -10 -9 -8 -7 -6 -5 -4 ------------ Run | Yrd Mat Min Exi Min Mat Fac Fac Fac Fac Used RIF Installer . | . . . . . . . . . . Robots Hacked . | . . . . . . . . . . Non-combat . | . . . . . . . . . . Combat . | . . . . . . . . . . Robot Hacks Applied . | . . . . . . . . . . Relay Couplers Released . | . . . . . . . . . . Fabnet Peak Effective % . | . . . . . . . . . . Robots Rewired . | . . . . . . . . . . Allies Hacked . | . . . . . . . . . . Hacks Repelled . | . . . . . . . . . . Allies | -11 -10 -10 -10 -9 -8 -7 -6 -5 -4 -------- Run | Yrd Mat Min Exi Min Mat Fac Fac Fac Fac Total Allies . | . . . . . . . . . . Largest Group . | . . . . . . . . . . Highest-Rated Group . | . . . . . . . . . . Highest-Rated Ally . | . . . . . . . . . . Total Orders . | . . . . . . . . . . Ally Attacks . | . . . . . . . . . . Total Damage . | . . . . . . . . . . Kills . | . . . . . . . . . . Allies Corrupted . | . . . . . . . . . . Allies Melted . | . . . . . . . . . . Intel | -11 -10 -10 -10 -9 -8 -7 -6 -5 -4 ------- Run | Yrd Mat Min Exi Min Mat Fac Fac Fac Fac Active Infowar (turns) 76 | . . . . . . . . 1 75 Sensors 63 | . . . . . . . . . 63 Triangulation 74 | . . . . . . . . 1 73 Robot Analysis Total . | . . . . . . . . . . Derelict Logs Recovered 2 | . . 1 . 1 . . . . . Drone Launches . | . . . . . . . . . . Drone Recoveries . | . . . . . . . . . . Exploration | -11 -10 -10 -10 -9 -8 -7 -6 -5 -4 ------------- Run | Yrd Mat Min Exi Min Mat Fac Fac Fac Fac Turns Passed 2570 | 50 164 386 281 292 610 80 72 423 212 Spaces Moved 2785 | 35 122 258 235 105 385 246 185 871 343 Core 149 | 8 . . . 54 14 . . . 73 Treads . | . . . . . . . . . . Legs 894 | 27 122 258 235 51 201 . . . . Wheels . | . . . . . . . . . . Hover . | . . . . . . . . . . Flight 1742 | . . . . . 170 246 185 871 270 Fastest Speed 26 | 50 120 120 120 120 26 26 27 27 34 Average Speed 65 | 104 120 120 120 186 88 26 29 29 39 Slowest Speed 300 | 120 120 120 120 250 300 26 31 37 50 Overloaded Moves . | . . . . . . . . . . Propulsion Burnouts . | . . . . . . . . . . Robots Hopped 23 | . . . . . 1 1 5 12 4 Potential Cave-ins . | . . . . . . . . . . Cave-ins Triggered . | . . . . . . . . . . Exploration Rate (%) 27 | 4 31 55 61 31 34 10 9 27 9 Regions Visited 9 Branch Regions 3 Pre-discovered Areas . | . . . . . . . . . . Known Exits Taken . | . . . . . . . . . . Unknown Exits Taken 9 | 1 1 1 1 1 1 1 1 1 . Scrap Searched 3 | . . 2 . 1 . . . . . Spaces Dug . | . . . . . . . . . . Terrain Destroyed 10 | . . . . . 10 . . . . Melee . | . . . . . . . . . . Projectile . | . . . . . . . . . . AOE 10 | . . . . . 10 . . . . Terrain Rammed . | . . . . . . . . . . Walls Destroyed . | . . . . . . . . . . Machines Disabled . | . . . . . . . . . . Actions | -11 -10 -10 -10 -9 -8 -7 -6 -5 -4 --------- Run | Yrd Mat Min Exi Min Mat Fac Fac Fac Fac Total 3331 | 48 127 301 234 153 585 262 198 1008 415 Wait 291 | . . 17 . 2 110 . 6 114 42 Move 2732 | 34 121 257 234 104 382 243 174 847 336 Hop 21 | . . . . . 1 1 5 11 3 Pick Up 68 | 8 . 7 . 5 23 8 3 11 3 Fast Attach 10 | . . . . 1 2 1 . 1 5 Attach 40 | 6 . 2 . 2 17 2 1 10 . Detach 2 | . . . . . . . . . 2 Swap 14 | . . 2 . 2 5 1 4 . . Drop 34 | . . . . 4 10 6 5 5 4 Fire 99 | . 6 16 . 33 35 . . 9 . Melee . | . . . . . . . . . . Ram . | . . . . . . . . . . Kick . | . . . . . . . . . . Crush . | . . . . . . . . . . Escape Stasis 20 | . . . . . . . . . 20 Rewire . | . . . . . . . . . . Trap . | . . . . . . . . . . Miscellaneous . | . . . . . . . . . . Route ------- -11/Scrapyard -10/Materials -10/Mines -10/Exiles -9/Mines -8/Materials -7/Factory -6/Factory -5/Factory -4/Factory History --------- Turn | Location | Event 31 | -11/Scrapyard | Discovered new exit (range 15) 51 | -11/Scrapyard | Entered Materials 125 | -10/Materials | Discovered new exit (range 11) 215 | -10/Materials | Entered Mines 216 | -10/Mines | Met a Derelict bent on vengeance 244 | -10/Mines | Learned Materials garrison access intel 295 | -10/Mines | Found the Drone Emporium 298 | -10/Mines | Found Prototype Device 300 | -10/Mines | Build established: Mutant 329 | -10/Mines | Found a hidden stash of uninstalled traps 595 | -10/Mines | Deemed a non-threat by the Exiles lab entrance 596 | -10/Mines | Discovered new exit (range 5) 601 | -10/Mines | Entered Exiles 601 | -10/Exiles | Found Exiles lab abandoned 869 | -10/Exiles | Discovered new exit (range 14) 882 | -10/Exiles | Entered Mines 936 | -9/Mines | Assembled infested the area 941 | -9/Mines | Assisted by a Guerilla fighting off Assembled 968 | -9/Mines | Learned 2 Materials zone layouts 1013 | -9/Mines | Core integrity fell below 50% 1045 | -9/Mines | Lost 3 parts (2n1u) 1157 | -9/Mines | Discovered new exit (range 8) 1174 | -9/Mines | Entered Materials 1174 | -8/Materials | Evolved 4 slots: Propulsion x2, Utility x2 1176 | -8/Materials | Loaded intel: 1 garrison access location 1609 | -8/Materials | Lost 3 parts (1u2w) 1780 | -8/Materials | Discovered new exit (range 11) 1784 | -8/Materials | Entered Factory 1784 | -7/Factory | Evolved 2 slots: Utility x2 1858 | -7/Factory | Discovered new exit (range 15) 1864 | -7/Factory | Entered another Factory area 1864 | -6/Factory | Evolved 2 slots: Utility x2 1934 | -6/Factory | Discovered new exit (range 7) 1936 | -6/Factory | Entered another Factory area 1936 | -5/Factory | Evolved 2 slots: Propulsion x1, Utility x1 2012 | -5/Factory | Build established: Sprinter 2242 | -5/Factory | Lost 3 parts (1n2w) 2285 | -5/Factory | Lost 4 parts (2n1u1w) 2351 | -5/Factory | Discovered new exit (range 15) 2359 | -5/Factory | Entered another Factory area 2359 | -4/Factory | Evolved 2 slots: Power x1, Utility x1 2432 | -4/Factory | Spotted B-86 Titan 2548 | -4/Factory | Core integrity fell below 50% 2550 | -4/Factory | Build established: Mutant 2559 | -4/Factory | Core integrity fell below 20% 2560 | -4/Factory | Lost 9 parts (1p3n4u1w) 2571 | -4/Factory | Destroyed by C-35 Carver with Carbide Saw Last Messages --------------- Targeting Computer destroyed. Dropped Mic. Fission Core. Critical hit (Burn: +37). Imp. Targeting Computer severed. C-30 ARC bursts open, deploying its payload. S-27 Virus unfolds itself. Triggered Stasis Trap. A bubble of rippling energy engulfs the area. Field strength at 94. Field strength at 88. Field strength at 82. Core Analyzer severed. Field strength at 55. System Shield severed. Field strength at 36. Field strength at 23. Imp. Targeting Computer severed. Stasis field depleted. S-27 Virus destroyed. K-01 Serf collects debris. Map ----- +----------------------------------------------------+ | ?????????????????????????????????????????????????? | | ?????????????????????????????????????????????????? | | ?????????????????????????????????????????????????? | | ?????????????????????????????????????????????????? | | ?????????????????????????????????????????????????? | | ?????????????????????????????????????????????????? | | ?????????????????????????????????????????????????? | | ?????????????????????????????????????????????????? | | ?????????????????????????????????????????????????? | | ?????????????????????????????????????????????????? | | ?????????????????????????????????????????????????? | | ?????????????????????????????????????????????????? | | ?????????????????????????????????????????????????? | | ?????????????????????????????????????????????????? | | ?????????????????????????????????????????????????? | | ?????????????????????????????????????????????????? | | ?????????????????????????????????????????????????? | | ?????????????????????????????????????????????????? | | ?????????????????????????????????????????????????? | | ?????????????????????????????????????????????????? | | ?????????????????????????????????????????????????? | | ?????????????????????????????????????????????????? | | ?????????????????????????????????????????????????? | | ###########+##############???????????????????????? | | #########???????????????? | | w c@R t ????????? | | c #########???????????????? | | #???????????????????????? | | c #???????????????????????? | | k #???????????????????????? | | k #???????????????????????? | | ###################???????????????????????? | | #?????????????????????????????????????????? | | #?????????????????????????????????????????? | | #?""F?????????????????????????????????????? | | # """ ??????????????????????????????????? | | # ?????????????????????????????????? | | / ! ?????????????????????????????????? | | # ?????????????????????????????????? | | # ??????????????????????????????????? | | #? ???????????????????????????????????? | | #? ? ???????????????????????????????????? | | #?? ? ???????????????????????????????????? | | #??? ?????????????????????????????????????? | | #?????????????????????????????????????????? | | %#?????????????????????????????????????????? | | * #?????????????????????????????????????????? | | %= #?????????????????????????????????????????? | | [ #?????????????????????????????????????????? | | ^ #?????????????????????????????????????????? | +----------------------------------------------------+ Best States ------------- Heat Dissipation 62 Energy Generation 25 Energy Capacity 250 Matter Stores 300 Matter Capacity 300 Sight Range 16 Robot Scan Range 16 Terrain Scan Density 10 Propulsion Shielding 33 Utility Shielding 33 Evasion (%) 64 Targeting Accuracy 17 Core Analysis 6 Energy Filtering 30 Defensive Hacking 10 Item Schematics ----------------- None Robot Schematics ------------------ None Fabricated ------------ Nothing Repaired ---------- Nothing Studied --------- None Alien Tech Used ----------------- None Achievements -------------- None Challenges ------------ None Game ------ Seed SuperdenseCoilSuit Manual? 0 Play Time 00:44:14 Cumulative 25.3 hours Start 2025.12.20 @ 17:12:30 End 2025.12.20 @ 18:04:38 Sessions 1 Manual Loads 0 Difficulty Rogue Special Mode None Game No. 47 Rogue 46 Adventurer 1 Explorer 0 Win Type - Total 0 Types 0/0/0/0/0/0/0/0/0/0 Lore% 6 Gallery% 25 Achievement% 18 Wizard Run 0 Options --------- Layout 1 ASCII 0 Keyboard 0 Movement Arrows Keybinds 0 Fullscreen 1 Font 24/Smallcaps Map View 50x35 Zoom Use 0% Tactical HUD 0 Map Filters NONE Filters NONE Steam 1 RUN: cde4e37f-5157-47ee-8206-6faa5048e295